bitfinex/quotes_SOLUSD_20260201
["timestamp","ask_amount","ask_price","bid_price","bid_amount"]
[1769962148500,9.2151805,102.15,102.11,14.22731431]
[1769962150201,1e-08,102.15,102.13,9.79144227]
[1769962150400,9.2151805,102.15,102.12,4.43395421]
[1769962150700,19.00474296,102.15,102.11,14.22684277]
[1769962150896,9.2151805,102.15,102.11,14.22684277]
[1769962151095,9.2151805,102.15,102.12,9.7921905]
[1769962151494,1e-08,102.15,102.13,4.43395421]
[1769962151987,1e-08,102.15,102.14,4.43395421]
[1769962152503,1e-08,102.15,102.14,19.00566413]
[1769962152881,1e-08,102.15,102.14,9.79048364]
[1769962153498,1e-08,102.15,102.13,14.22466886]
[1769962153703,1e-08,102.15,102.12,9.79182127]
[1769962153918,1e-08,102.15,102.11,4.43395421]
[1769962153919,9.21518049,102.14,102.11,14.2267645]
[1769962154219,9.21518049,102.12,102.09,4.43395421]
[1769962154883,9.21518049,102.14,102.1,4.43395421]
[1769962156211,1e-08,102.15,102.14,4.43395421]
[1769962156391,1e-08,102.15,102.14,14.22443785]
[1769962156706,1e-08,102.15,102.14,9.79048364]
[1769962157101,1e-08,102.15,102.14,14.22443785]
[1769962159293,1e-08,102.15,102.14,9.79048364]
[1769962160808,1e-08,102.15,102.13,14.42505574]
[1769962161111,1e-08,102.15,102.13,14.22505574]
[1769962161312,1e-08,102.15,102.13,4.43395421]
[1769962161507,1e-08,102.15,102.12,9.79198078]
[1769962161695,1e-08,102.15,102.12,14.22593499]
[1769962165315,13.4760292,102.15,102.11,9.79286587]
[1769962165618,13.47602919,102.12,102.08,14.22974944]
[1769962165821,4.2608487,102.12,102.08,4.43395421]
[1769962166000,9.21518049,102.13,102.08,4.43395421]
[1769962166316,9.21518049,102.13,102.09,4.43395421]
[1769962166897,13.47602919,102.13,102.09,4.43395421]
[1769962167098,9.21518049,102.12,102.09,4.43395421]
[1769962167316,9.21518049,102.12,102.07,47.93873229]
[1769962167616,9.21518049,102.11,102.07,14.2305568]
[1769962167791,4.2608487,102.1,102.05,28.92992948]
[1769962167994,9.21518049,102.1,102.07,9.79683375]
[1769962168190,9.79341229,102.11,102.07,9.79689575]
[1769962168407,1e-08,102.15,102.11,4.43395421]
[1769962168610,1e-08,102.15,102.12,13.6491347]
[1769962169015,9.2151805,102.15,102.1,13.6491347]
[1769962169222,9.21518049,102.14,102.1,4.43395421]
[1769962169718,4.26084871,102.15,102.14,4.43395421]
[1769962169719,1e-08,102.15,102.14,4.43395421]
[1769962169915,1e-08,102.15,102.14,23.43961834]
[1769962170215,1e-08,102.15,102.14,14.22443785]
[1769962170408,0.1,102.19,102.14,70.68187325]
[1769962170713,0.1,102.19,102.16,9.21518049]
[1769962170918,0.1,102.19,102.16,13.6491347]
[1769962171321,4.3608487,102.24,102.18,4.43395421]
[1769962171619,4.2608487,102.23,102.18,13.6491347]
[1769962172001,14.04277691,102.23,102.19,9.78569331]
[1769962172199,4.3608487,102.24,102.19,47.8990613]
[1769962172504,0.1,102.24,102.19,47.8990613]
[1769962173410,1e-08,102.24,102.22,9.21518049]
[1769962173610,1e-08,102.24,102.22,13.6491347]
[1769962174115,0.1,102.25,102.24,9.78090766]
[1769962174116,1e-08,102.25,102.24,9.78090766]
[1769962174333,1e-08,102.25,102.24,23.43004236]
[1769962174516,1e-08,102.27,102.24,47.88231153]
[1769962175518,1e-08,102.27,102.26,4.43395421]
[1769962175722,1e-08,102.27,102.26,13.6491347]
[1769962175925,1e-08,102.27,102.26,4.43395421]
[1769962176124,1e-08,102.27,102.25,9.21518049]
[1769962176429,4.2608487,102.33,102.26,9.21518049]
[1769962176606,4.2608487,102.33,102.22,4.27527085]
[1769962176607,4.2608487,102.32,102.27,9.21518049]
[1769962177205,4.2608487,102.32,102.26,9.21518049]
[1769962177426,4.2608487,102.32,102.27,9.21518049]
[1769962177599,4.2608487,102.32,102.26,34.2264815]
[1769962177800,4.47704963,102.31,102.26,43.44166199]
[1769962178107,4.47704963,102.31,102.28,9.77708251]
[1769962178617,34.20310684,102.33,102.28,23.28762768]
[1769962178827,9.77234363,102.33,102.28,23.28762768]
[1769962179027,9.77234363,102.33,102.23,48.90766535]
[1769962179028,4.47704963,102.28,102.21,4.29536468]
[1769962179226,13.69223012,102.22,102.17,4.29536468]
[1769962179437,13.69223012,102.22,102.2,9.78417713]
[1769962179601,9.21518049,102.23,102.18,4.29536468]
[1769962179920,13.69223012,102.24,102.2,9.78410188]
[1769962180228,9.21518049,102.22,102.19,14.08080282]
[1769962180525,4.47704963,102.24,102.17,9.78699872]
[1769962180526,4.47704963,102.21,102.17,9.78699872]
[1769962180720,13.69223012,102.18,102.13,31.47536468]
[1769962180924,9.21518049,102.17,102.14,9.79048364]
[1769962181125,9.21518049,102.15,102.13,9.79117969]
[1769962181310,9.21518049,102.15,102.12,9.79218421]
[1769962181513,9.21518049,102.14,102.11,14.08835071]
[1769962181709,9.21518049,102.13,102.1,9.79408243]
[1769962182013,9.21518049,102.11,102.07,4.29536468]
[1769962182208,9.21518049,102.09,102.06,9.79778224]
[1769962182407,9.21518049,102.08,102.06,9.79778224]
[1769962182707,13.69223012,102.1,102.07,9.797198]
[1769962182910,9.21518049,102.09,102.06,9.79788244]
[1769962183122,9.21518049,102.09,102.05,4.29536468]
[1769962183402,9.21518049,102.1,102.07,9.79699178]
[1769962184421,9.21518049,102.09,102.05,24.49669971]
[1769962184627,9.21518049,102.09,102.06,9.7976717]
[1769962184827,9.21518049,102.1,102.06,14.26319279]
[1769962185012,13.51868385,102.1,102.06,9.7976717]
[1769962185210,4.30350336,102.08,102.05,9.7988663]
[1769962185429,13.51868385,102.08,102.05,9.7988663]
[1769962185727,13.51868385,102.1,102.06,9.79766264]
[1769962185919,13.51868385,102.1,102.06,34.2930575]
[1769962186830,13.51868385,102.08,102.02,4.46552109]
[1769962187134,13.51868385,102.1,102.05,38.76240692]
[1769962187332,4.30350336,102.05,101.99,24.51157867]
[1769962187537,4.30350336,102.05,101.96,4.46552109]
[1769962187538,9.21518049,102.03,102.0,9.80371643]
[1769962187721,13.13389074,102.05,102.0,9.80371643]
[1769962188239,9.21518049,102.05,102.0,9.80358183]
[1769962188426,9.23641833,102.05,102.0,9.80358183]
[1769962188623,9.23641833,102.03,101.99,9.80478496]
[1769962189026,9.23641833,102.04,101.99,9.80478496]
[1769962189329,9.79938885,102.05,101.98,14.27123301]
[1769962189330,9.23641833,102.02,101.98,14.27123301]
[1769962190132,9.23641833,102.02,101.98,4.46552109]
[1769962190342,9.23641833,102.02,101.97,0.2]
[1769962190343,4.30350336,101.98,101.92,73.08852752]
[1769962190521,18.47283666,101.99,101.91,4.46552109]
[1769962190522,19.04617781,101.94,101.91,4.46552109]
[1769962190726,9.80900349,101.95,101.91,4.46552109]
[1769962190924,9.23641833,101.95,101.91,14.2780556]
[1769962191139,13.53992169,101.96,101.91,14.2780556]
[1769962191312,13.53992169,101.96,101.91,9.81253451]
[1769962191313,13.53992169,101.95,101.91,9.81253451]
[1769962191516,9.23641833,101.94,101.9,14.27883619]
[1769962191712,13.53992169,101.95,101.91,9.81246718]
[1769962191941,9.23641833,101.94,101.9,4.46552109]
[1769962192137,9.23641833,101.93,101.89,1.115069]
[1769962192351,13.53992169,101.91,101.89,1.115069]
[1769962192725,4.30350336,101.93,101.89,1.115069]
[1769962192922,9.23641833,101.92,101.89,1.115069]
[1769962193123,9.23641833,101.9,101.88,0.5143344]
[1769962194049,13.53992169,101.89,101.85,9.81821338]
[1769962194222,9.23641833,101.87,101.84,14.28461172]
[1769962194421,13.53992169,101.88,101.84,34.3674017]
[1769962194618,13.53992169,101.9,101.84,48.06934112]
[1769962194842,9.23641833,101.91,101.86,4.46552109]
[1769962195425,9.23641833,101.89,101.84,34.3674017]
[1769962195748,9.23641833,101.88,101.84,38.83292279]
[1769962195947,4.30350336,101.9,101.85,4.46552109]
[1769962196131,9.23641833,101.89,101.85,4.46552109]
[1769962196329,29.8885903,101.93,101.84,34.3674017]
[1769962196330,9.23641833,101.93,101.89,4.46552109]
[1769962196529,5.36086188,101.97,101.89,4.46552109]
[1769962196530,13.53992169,101.94,101.89,4.46552109]
[1769962196854,9.23641833,101.92,101.88,24.53774889]
[1769962197018,9.23641833,101.89,101.85,14.2831907]
[1769962197223,9.23641833,101.89,101.85,9.81766961]
[1769962197224,9.23641833,101.88,101.85,9.81766961]
[1769962198837,13.53992169,101.91,101.86,4.46552109]
[1769962199031,9.23641833,101.9,101.86,4.46552109]
[1769962199540,9.23641833,101.91,101.87,4.46552109]
[1769962200237,9.23641833,101.94,101.89,4.46552109]
[1769962200542,13.53992169,101.95,101.9,4.46552109]
[1769962200721,9.23641833,101.97,101.93,9.81065437]
[1769962200922,9.23641833,101.97,101.93,14.27617546]
[1769962201129,13.53992169,101.98,101.93,38.80281138]
[1769962201330,9.23641833,101.97,101.93,38.80281138]
[1769962201737,13.53992169,101.98,101.93,38.80281138]
[1769962202028,9.23641833,101.95,101.92,9.81154905]
[1769962202240,13.53992169,101.96,101.92,9.81154905]
[1769962202528,9.23641833,101.93,101.89,24.5346494]
[1769962202828,9.23641833,101.93,101.89,38.81467632]
[1769962203534,9.23641833,101.95,101.9,4.46552109]
[1769962203735,9.23641833,101.95,101.9,13.70193942]
[1769962203940,13.53992169,101.94,101.89,34.34915523]
[1769962204253,13.53992169,101.91,101.86,4.46552109]
[1769962204452,9.23641833,101.91,101.86,4.46552109]
[1769962204747,9.23641833,101.89,101.86,9.81685396]
[1769962205043,9.23641833,101.91,101.86,13.70193942]
[1769962205431,13.53992169,101.93,101.88,4.46552109]
[1769962205632,23.35072331,101.93,101.88,4.46552109]
[1769962205936,9.23641833,101.92,101.88,4.46552109]
[1769962207051,19.04807062,101.92,101.88,14.28088806]
[1769962207648,9.23641833,101.89,101.86,24.54272055]
[1769962207852,9.23641833,101.9,101.86,28.66901056]
[1769962208234,9.23641833,101.92,101.88,4.12629001]
[1769962208428,9.23641833,101.92,101.8,81.37358868]
[1769962208429,9.23641833,101.9,101.86,4.12629001]
[1769962208737,9.23641833,101.89,101.86,13.94313286]
[1769962209333,9.23641833,101.9,101.86,13.94313286]
[1769962209545,13.53986995,101.92,101.87,4.12629001]
[1769962209743,9.23641833,101.92,101.88,4.12629001]
[1769962210132,9.23641833,101.92,101.87,9.23641833]
[1769962210133,9.23641833,101.91,101.87,4.12629001]
[1769962210352,13.53986995,101.92,101.87,4.12629001]
[1769962211351,9.23641833,101.93,101.88,13.94175918]
[1769962211558,9.23641833,101.93,101.88,47.71685045]
[1769962211749,9.23641833,101.93,101.88,38.48043212]
[1769962212349,9.23641833,101.92,101.88,38.48043212]
[1769962212661,9.23641833,101.93,101.88,38.48043212]
[1769962213041,9.23641833,101.93,101.88,47.71685045]
[1769962213234,9.23641833,101.93,101.88,38.48043212]
[1769962214036,9.23641833,101.93,101.88,47.71685045]
[1769962214363,9.23641833,101.9,101.87,9.81637161]
[1769962214537,4.30345162,101.92,101.87,9.81637161]
[1769962214538,9.23641833,101.91,101.88,9.81530144]
[1769962214738,9.23641833,101.93,101.89,4.12629001]
[1769962214948,9.23641833,101.94,101.89,13.36270834]
[1769962215247,9.23641833,101.94,101.9,4.12629001]
[1769962215457,19.04619709,101.94,101.9,4.12629001]
[1769962215662,19.04619709,101.94,101.9,13.93969863]
[1769962216567,9.23641833,101.92,101.88,4.12629001]
[1769962216745,9.23641833,101.92,101.88,13.94130655]
[1769962217066,9.23641833,101.92,101.89,9.81411237]
[1769962218371,9.23641833,101.95,101.9,4.12629001]
[1769962218673,9.23641833,101.96,101.92,4.12629001]
[1769962218862,13.53986995,101.97,101.92,4.12629001]
[1769962219049,9.23641833,101.97,101.93,4.12629001]
[1769962219647,14.10994646,101.98,101.93,4.12629001]
[1769962219847,9.23641833,101.95,101.91,4.12629001]
[1769962220048,9.27945284,101.95,101.89,96.78561449]
[1769962220245,4.30345162,101.92,101.86,31.36629001]
[1769962220452,9.23641833,101.89,101.86,4.12629001]
[1769962220646,9.23641833,101.87,101.86,4.12629001]
[1769962220873,9.23641833,101.88,101.86,4.12629001]
[1769962221349,9.23641833,101.87,101.86,4.12629001]
[1769962221549,13.32144544,101.87,101.81,33.79000827]
[1769962221749,4.08502711,101.87,101.83,9.82019508]
[1769962221957,13.32144544,101.87,101.82,9.23641833]
[1769962222372,13.58333916,101.85,101.81,9.82168458]
[1769962222669,4.34692083,101.83,101.77,24.76362354]
[1769962222868,13.58333916,101.83,101.78,24.56206796]
[1769962223377,13.58333916,101.83,101.78,9.8242411]
[1769962223378,9.23641833,101.82,101.78,9.8242411]
[1769962223674,4.34692083,101.82,101.77,4.32629001]
[1769962223874,4.34692083,101.82,101.74,103.53463785]
[1769962223875,13.58333916,101.78,101.73,9.23800969]
[1769962224173,9.23641833,101.76,101.72,9.83028399]
[1769962224373,9.23641833,101.75,101.71,13.95813309]
[1769962224547,4.34692083,101.77,101.72,4.12629001]
[1769962224745,13.58333916,101.77,101.72,4.12629001]
[1769962224961,4.34692083,101.72,101.68,11.06383038]
[1769962225166,9.23641833,101.73,101.7,9.83219573]
[1769962225450,13.58333916,101.74,101.7,9.83276099]
[1769962225775,9.23641833,101.73,101.69,13.95992157]
[1769962225956,4.34692083,101.76,101.71,4.12629001]
[1769962226353,9.23641833,101.74,101.7,4.12629001]
[1769962226554,4.34692083,101.74,101.7,4.12629001]
[1769962226756,8.62219168,101.7,101.65,33.45487964]
[1769962226972,9.23641833,101.67,101.63,9.24296769]
[1769962227273,4.34692083,101.68,101.62,4.12629001]
[1769962227456,9.23641833,101.67,101.62,4.12629001]
[1769962227656,4.34692083,101.68,101.63,9.83870512]
[1769962227872,9.23641833,101.67,101.64,9.83843313]
[1769962228066,9.23641833,101.67,101.62,4.12629001]
[1769962228374,9.23641833,101.64,101.6,4.12629001]
[1769962228574,9.23641833,101.62,101.56,4.12629001]
[1769962228875,13.58333916,101.65,101.6,4.12629001]
[1769962229073,4.34692083,101.67,101.61,4.12629001]
[1769962229279,4.34692083,101.67,101.62,4.12629001]
[1769962229280,9.23641833,101.66,101.62,4.12629001]
[1769962229460,9.23641833,101.66,101.62,13.96674112]
[1769962229651,9.23641833,101.66,101.6,4.12629001]
[1769962229652,9.23641833,101.64,101.6,4.12629001]
[1769962229857,9.23641833,101.63,101.6,4.12629001]
[1769962230271,9.23641833,101.63,101.58,13.9704765]
[1769962230663,9.23641833,101.65,101.6,4.12629001]
[1769962230858,13.58333916,101.65,101.6,4.12629001]
[1769962231065,9.23641833,101.68,101.63,4.12629001]
[1769962231260,4.34692083,101.71,101.65,4.12629001]
[1769962231557,4.34692083,101.71,101.66,4.12629001]
[1769962231558,13.58333916,101.71,101.66,4.12629001]
[1769962231755,10.50081286,101.75,101.69,4.12629001]
[1769962232060,9.23641833,101.74,101.7,4.12629001]
[1769962232255,19.73723119,101.75,101.71,9.83187493]
[1769962232464,4.34692083,101.74,101.69,13.9599262]
[1769962232662,21.06027375,101.75,101.7,13.95907332]
[1769962232867,6.15389203,101.75,101.71,4.12629001]
[1769962233167,3.86963071,101.75,101.72,4.12629001]
[1769962233372,3.86963071,101.75,101.73,4.12629001]
[1769962233683,19.25330255,101.8,101.75,4.12629001]
[1769962233980,14.90638172,101.78,101.73,4.12629001]
[1769962234287,14.90638172,101.8,101.75,13.95348414]
[1769962234458,14.90638172,101.78,101.73,13.9555655]
[1769962234664,14.90638172,101.79,101.74,4.12629001]
[1769962234863,14.90638172,101.79,101.74,13.95498327]
[1769962235381,19.25330255,101.77,101.72,13.95626316]
[1769962235681,19.25330255,101.77,101.73,9.8299104]
[1769962235865,14.90638172,101.78,101.73,4.12629001]
[1769962236068,19.25330255,101.79,101.74,13.95498318]
[1769962236273,14.90638172,101.78,101.74,13.95498318]
[1769962236478,24.72989581,101.8,101.75,4.12629001]
[1769962236678,14.90638172,101.79,101.75,4.12629001]
[1769962237962,14.90638172,101.77,101.72,14.04995153]
[1769962238280,14.90638172,101.76,101.72,4.21973659]
[1769962238585,14.90638172,101.75,101.72,4.21973659]
[1769962238986,14.90638172,101.75,101.72,14.05062142]
[1769962239181,14.90638172,101.76,101.72,14.05062142]
[1769962239387,28.9237188,101.79,101.74,4.21973659]
[1769962240177,19.09902484,101.79,101.75,9.82800982]
[1769962240483,25.25498756,101.81,101.76,4.21973659]
[1769962240864,6.15596272,101.81,101.77,4.21973659]
[1769962241069,6.15596272,101.81,101.78,4.21973659]
[1769962241575,4.19264312,101.78,101.73,41.34899337]
[1769962241775,14.90638172,101.77,101.74,9.82891523]
[1769962241973,14.90638172,101.76,101.72,9.83027853]
[1769962242595,4.19264312,101.79,101.73,4.21973659]
[1769962242888,29.53025841,101.81,101.76,4.21973659]
[1769962243398,6.15596272,101.81,101.77,4.21973659]
[1769962243576,6.15596272,101.81,101.78,4.21973659]
[1769962243906,6.15596272,101.81,101.77,4.21973659]
[1769962244074,6.15596272,101.81,101.78,19.12611831]
[1769962244273,6.15596272,101.81,101.76,4.21973659]
[1769962244465,6.15596272,101.81,101.79,4.21973659]
[1769962246101,14.90638172,101.83,101.79,4.21973659]
[1769962246300,28.91843883,101.84,101.79,4.21973659]
[1769962246480,28.91843883,101.84,101.8,9.82318271]
[1769962247078,4.13117158,101.83,101.79,9.82393366]
[1769962247279,14.90638172,101.86,101.81,4.15412371]
[1769962247480,19.0375533,101.87,101.82,4.15412371]
[1769962247695,19.0375533,101.86,101.8,19.06050543]
[1769962248100,19.0375533,101.86,101.81,4.15412371]
[1769962248304,14.90638172,101.83,101.79,9.82393366]
[1769962248503,4.13117158,101.84,101.79,9.82393366]
[1769962248504,4.13117158,101.84,101.79,4.15412371]
[1769962248690,14.90638172,101.82,101.79,13.97795994]
[1769962248882,14.90638172,101.82,101.79,4.15412371]
[1769962249484,14.90638172,101.83,101.79,13.97781648]
[1769962250406,24.70212478,101.83,101.79,13.97781648]
[1769962250905,19.01297078,101.81,101.76,13.98077739]
[1769962251602,14.8817992,101.82,101.78,9.82433848]
[1769962251902,19.01297078,101.82,101.78,9.82433848]
[1769962252410,13.41005456,101.82,101.78,9.82433848]
[1769962253506,23.23131695,101.82,101.78,13.97846219]
[1769962254104,9.27888298,101.81,101.78,4.15412371]
[1769962254503,19.10014537,101.82,101.78,4.15412371]
[1769962255004,9.27888298,101.82,101.78,4.15412371]
[1769962255204,4.13117158,101.83,101.78,4.15412371]
[1769962255205,13.41005456,101.83,101.78,4.15412371]
[1769962255412,23.23036592,101.83,101.79,9.82414775]
[1769962256703,9.27888298,101.82,101.78,13.97907559]
[1769962258014,9.27888298,101.81,101.78,9.82509073]
[1769962258308,9.27888298,101.81,101.77,13.9798132]
[1769962258697,9.27888298,101.82,101.78,13.9791903]
[1769962259097,9.27888298,101.83,101.79,4.15412371]
[1769962260208,9.27888298,101.83,101.79,13.97798268]
[1769962260405,9.27888298,101.84,101.8,4.15412371]
[1769962260606,13.41005456,101.84,101.8,4.15412371]
[1769962261313,9.27888298,101.87,101.82,4.15412371]
[1769962261497,9.27888298,101.87,101.83,4.15412371]
[1769962261694,6.14930189,101.88,101.83,4.15412371]
[1769962261921,6.14930189,101.88,101.84,4.15412371]
[1769962262301,6.14930189,101.88,101.85,13.97248404]
[1769962263399,23.22304444,101.91,101.86,4.15412371]
[1769962263594,9.27888298,101.9,101.86,4.15412371]
[1769962263901,23.22273185,101.91,101.86,4.15412371]
[1769962264313,23.22273185,101.91,101.87,9.8164327]
[1769962264723,4.13117158,101.91,101.87,9.8164327]
[1769962264896,4.13117158,101.91,101.87,38.51163818]
[1769962265104,13.41005456,101.9,101.86,9.816991]
[1769962265398,9.27888298,101.87,101.83,28.70375035]
[1769962265599,13.41005456,101.88,101.85,9.81761703]
[1769962265996,13.41005456,101.86,101.81,28.70861476]
[1769962266204,13.41005456,101.86,101.81,4.15412371]
[1769962266415,13.41005456,101.84,101.8,9.82318271]
[1769962266616,23.22949703,101.84,101.8,9.82318271]
[1769962266815,13.41005456,101.84,101.8,38.53526319]
[1769962267136,13.41005456,101.86,101.8,47.81414617]
[1769962267710,9.81690358,101.87,101.82,4.43780572]
[1769962267711,9.27888298,101.87,101.82,4.43780572]
[1769962268114,13.35739639,101.87,101.82,4.43780572]
[1769962268343,13.35739639,101.85,101.8,38.8189452]
[1769962268505,4.07851341,101.84,101.8,38.8189452]
[1769962268926,13.35739639,101.86,101.8,48.09782818]
[1769962269131,13.35739639,101.83,101.8,9.82318271]
[1769962269425,4.07851341,101.85,101.8,9.82318271]
[1769962269623,4.07851341,101.85,101.8,43.66002246]
[1769962270802,13.35739639,101.87,101.81,9.27888298]
[1769962271001,13.35739639,101.84,101.8,9.82318271]
[1769962271203,13.35739639,101.83,101.78,24.56150628]
[1769962271504,4.07851341,101.8,101.76,24.56646838]
[1769962271703,13.35739639,101.8,101.77,9.82584228]
[1769962271921,13.35739639,101.8,101.76,9.82665084]
[1769962272422,9.27888298,101.81,101.76,23.54373272]
[1769962272623,13.35739639,101.81,101.76,48.11061056]
[1769962273214,4.07851341,101.81,101.76,48.11061056]
[1769962273726,4.07851341,101.82,101.77,13.7166887]
[1769962274019,13.35739639,101.8,101.76,9.82704402]
[1769962274420,4.07851341,101.8,101.76,9.82704402]
[1769962274622,13.35739639,101.82,101.76,19.105927]
[1769962274825,9.27888298,101.85,101.8,4.43780572]
[1769962275035,4.07851341,101.86,101.81,13.7166887]
[1769962275410,4.07851341,101.86,101.82,9.27888298]
[1769962275618,4.07851341,101.86,101.81,13.7166887]
[1769962275823,13.35739639,101.86,101.81,4.43780572]
[1769962277206,9.27888298,101.87,101.82,38.81219188]
[1769962277406,4.07851341,101.87,101.82,48.09107486]
[1769962278628,4.07851341,101.93,101.87,4.43780572]
[1769962278812,4.07851341,101.93,101.89,9.27888298]
[1769962279009,4.07851341,101.92,101.87,9.27888298]
[1769962279329,13.35739639,101.89,101.85,34.36426116]
[1769962279628,13.35739639,101.89,101.85,9.81836033]
[1769962279829,4.07851341,101.89,101.85,9.81836033]
[1769962280134,4.07851341,101.87,101.82,28.99001245]
[1769962280510,4.07851341,101.87,101.84,9.8192191]
[1769962280511,13.35739639,101.87,101.84,9.8192191]
[1769962280827,4.07851341,101.87,101.84,9.8192191]
[1769962281031,13.35739639,101.87,101.84,9.8192191]
[1769962281427,13.35739639,101.86,101.82,9.82083371]
[1769962281731,4.07851341,101.88,101.82,48.09065538]
[1769962281916,9.27888298,101.86,101.82,38.8117724]
[1769962282111,4.07851341,101.85,101.82,9.82083371]
[1769962282427,13.35739639,101.85,101.82,9.82083371]
[1769962282621,4.07851341,101.85,101.82,9.82083371]
[1769962282930,13.35739639,101.87,101.82,9.82083371]
[1769962283425,4.07851341,101.87,101.82,43.65284966]
[1769962283814,13.35739639,101.87,101.82,34.37396668]
[1769962284232,4.07851341,101.87,101.82,48.09065538]
[1769962284432,4.07851341,101.89,101.84,13.7166887]
[1769962285630,4.07851341,101.88,101.85,9.81836033]
[1769962285834,9.27888298,101.87,101.84,9.81906707]
[1769962286039,4.07851341,101.84,101.81,24.55498257]
[1769962286330,9.27888298,101.85,101.82,9.82093972]
[1769962286331,13.35739639,101.85,101.82,9.82093972]
[1769962286507,13.35739639,101.85,101.81,9.82165601]
[1769962286919,9.27888298,101.85,101.82,9.82114676]
[1769962287233,4.07851341,101.85,101.82,9.82079825]
[1769962287538,4.07851341,101.85,101.81,34.37711815]
[1769962287721,13.35739639,101.85,101.81,34.37711815]
[1769962287919,13.35739639,101.87,101.81,48.09380685]
[1769962288119,4.07851341,101.86,101.81,48.09380685]
[1769962288328,13.35739639,101.85,101.81,34.37711815]
[1769962289426,13.35739639,101.85,101.81,9.82221785]
[1769962290021,4.07851341,101.84,101.81,9.82221785]
[1769962290223,13.35739639,101.84,101.81,9.82221785]
[1769962290938,13.35739639,101.84,101.8,9.82270188]
[1769962291522,13.35739639,101.84,101.79,4.43780572]
[1769962291523,13.35739639,101.83,101.79,9.82374285]
[1769962293627,15.42966163,101.89,101.83,4.43780572]
[1769962293825,9.27888298,101.91,101.86,4.43780572]
[1769962294341,9.27888298,101.93,101.88,4.43780572]
[1769962294545,0.1,101.94,101.89,13.7166887]
[1769962294722,0.1,101.94,101.9,13.7166887]
[1769962294922,0.1,101.94,101.89,13.7166887]
[1769962295522,0.1,101.94,101.9,9.81354268]
[1769962295844,0.1,101.94,101.9,19.09242566]
[1769962296420,4.07851341,101.92,101.88,9.81495816]
[1769962296616,4.07851341,101.92,101.89,9.81436169]
[1769962296821,9.27888298,101.92,101.89,9.81424662]
[1769962297041,13.35739639,101.93,101.89,9.81424662]
[1769962297435,13.6051547,101.92,101.88,9.81492593]
[1769962297635,14.2364731,101.94,101.89,14.15348783]
[1769962297835,13.7051547,101.94,101.89,23.43237081]
[1769962298027,13.6051547,101.93,101.89,14.15348783]
[1769962298224,4.32627172,101.92,101.88,9.81499402]
[1769962298953,4.32627172,101.89,101.87,9.8160792]
[1769962299249,4.32627172,101.89,101.86,9.81714055]
[1769962299449,4.32627172,101.89,101.85,14.15686508]
[1769962299450,13.6051547,101.89,101.85,14.15686508]
[1769962299648,23.41986318,101.89,101.84,9.81932443]
[1769962299856,13.6051547,101.89,101.84,34.3676355]
[1769962300029,4.32627172,101.88,101.84,47.98552129]
[1769962300429,4.32627172,101.88,101.84,38.70663831]
[1769962300634,4.32627172,101.88,101.84,47.98552129]
[1769962301752,13.6051547,101.88,101.82,4.33900281]
[1769962301971,13.6051547,101.88,101.8,31.53527085]
[1769962301972,4.32627172,101.85,101.8,4.33900281]
[1769962302245,13.6051547,101.84,101.8,9.8227163]
[1769962303244,4.32627172,101.83,101.79,9.82393368]
[1769962303453,13.6051547,101.83,101.79,9.82393368]
[1769962303656,4.32627172,101.83,101.79,9.82393368]
[1769962304067,4.32627172,101.82,101.79,9.82393368]
[1769962305554,13.66904907,101.84,101.79,34.38430306]
[1769962305733,13.66904907,101.84,101.79,43.66318604]
[1769962306953,13.66904907,101.84,101.79,34.38430306]
[1769962307536,9.81880916,101.85,101.79,34.38430306]
[1769962307537,14.20795533,101.86,101.81,4.46016827]
[1769962307749,23.48683831,101.86,101.81,4.46016827]
[1769962308355,4.39016609,101.85,101.81,14.2816578]
[1769962309349,23.48588745,101.87,101.82,4.46016827]
[1769962309554,23.48588745,101.87,101.8,14.28314194]
[1769962309555,13.66904907,101.84,101.8,14.28314194]
[1769962309858,9.27888298,101.83,101.8,4.46016827]
[1769962310060,9.27888298,101.83,101.79,9.82359836]
[1769962310452,9.27566543,101.83,101.79,9.82359836]
[1769962310659,9.27566543,101.82,101.79,9.82398794]
[1769962310963,13.66583152,101.82,101.78,9.82466022]
[1769962311143,4.39016609,101.81,101.77,4.46016827]
[1769962311349,4.39016609,101.81,101.77,13.7358337]
[1769962311548,4.39016609,101.81,101.78,9.82511298]
[1769962312233,19.09547278,101.84,101.79,4.46016827]
[1769962312437,13.66583152,101.83,101.78,9.82511298]
[1769962313261,13.66583152,101.83,101.78,14.28528125]
[1769962313557,13.66583152,101.83,101.78,38.84806372]
[1769962314562,4.39016609,101.82,101.78,38.84806372]
[1769962315839,19.096305,101.83,101.78,38.84806372]
[1769962316039,23.48647109,101.83,101.78,14.28528125]
[1769962316239,9.27566543,101.82,101.78,14.28528125]
[1769962316465,13.66583152,101.83,101.78,38.84806372]
[1769962317154,4.39016609,101.87,101.81,13.7358337]
[1769962317362,4.39016609,101.82,101.78,38.84806372]
[1769962318050,14.21146673,101.82,101.78,14.28528125]
[1769962318256,13.66583152,101.82,101.78,14.28528125]
[1769962318647,4.39016609,101.82,101.78,14.28528125]
[1769962318845,13.66583152,101.84,101.79,4.46016827]
[1769962319236,4.39016609,101.81,101.78,9.82511298]
[1769962319463,13.66583152,101.8,101.76,29.02568329]